bitfinex/quotes_BTCUSD_20250512
["timestamp","ask_amount","ask_price","bid_price","bid_amount"]
[1747031233485,0.28954377,104150.0,104140.0,0.2468575]
[1747031234733,0.28954377,104150.0,104140.0,0.2304575]
[1747031234947,0.28954377,104150.0,104140.0,0.2628575]
[1747031236574,0.25684789,104150.0,104140.0,0.27245922]
[1747031236790,0.26644887,104150.0,104140.0,0.25325569]
[1747031237009,0.2752833,104150.0,104140.0,0.2724594]
[1747031237201,0.2752833,104150.0,104140.0,0.26285759]
[1747031237541,0.28488437,104150.0,104140.0,0.2724594]
[1747031237966,0.26568241,104150.0,104140.0,0.2724594]
[1747031238189,0.2752833,104150.0,104140.0,0.2724594]
[1747031239085,0.0958543,104150.0,104140.0,0.2724594]
[1747031239291,0.2075743,104150.0,104140.0,0.2724594]
[1747031239473,0.57299723,104160.0,104150.0,0.25233421]
[1747031239618,0.77097166,104160.0,104150.0,0.25233421]
[1747031239820,0.39134326,104160.0,104150.0,0.25233421]
[1747031240049,0.61494326,104160.0,104150.0,0.25233421]
[1747031240277,0.00500519,104160.0,104150.0,0.25233421]
[1747031240493,0.89419162,104180.0,104170.0,0.25229181]
[1747031240708,0.19199385,104170.0,104160.0,0.23409689]
[1747031240938,0.49964643,104170.0,104160.0,0.26289743]
[1747031241332,0.51884553,104170.0,104160.0,0.26289743]
[1747031241538,0.52781859,104170.0,104160.0,0.26289743]
[1747031241734,0.50861894,104170.0,104160.0,0.26289743]
[1747031241952,0.51821826,104170.0,104160.0,0.26289743]
[1747031242384,0.54235477,104170.0,104160.0,0.26289743]
[1747031242831,0.52315595,104170.0,104160.0,0.26289743]
[1747031243041,0.53275536,104170.0,104160.0,0.26289743]
[1747031243243,0.53275527,104170.0,104160.0,0.26289743]
[1747031243457,0.54235468,104170.0,104160.0,0.26289743]
[1747031243664,0.13539007,104170.0,104160.0,0.26289743]
[1747031243891,0.24711007,104170.0,104160.0,0.26289743]
[1747031244104,0.02351007,104170.0,104160.0,0.26289743]
[1747031244327,0.39241522,104210.0,104200.0,0.19193857]
[1747031244538,0.39241522,104210.0,104190.0,0.24215131]
[1747031244539,0.02878893,104200.0,104190.0,0.57255475]
[1747031244766,0.02878893,104200.0,104190.0,0.56074979]
[1747031244767,0.39751737,104200.0,104190.0,0.56074979]
[1747031244974,0.39751737,104200.0,104190.0,0.56685223]
[1747031244975,0.7011764,104200.0,104190.0,0.56685223]
[1747031245239,0.49943803,104200.0,104190.0,0.58604672]
[1747031245457,0.33864695,104200.0,104190.0,0.26234672]
[1747031245677,0.35784061,104200.0,104190.0,0.25274952]
[1747031245897,0.78518472,104200.0,104190.0,0.223957]
[1747031246106,0.79984557,104200.0,104190.0,0.20155466]
[1747031246317,0.79024911,104200.0,104190.0,0.20155466]
[1747031247083,0.01919431,104190.0,104180.0,0.2534697]
[1747031247282,0.12464609,104190.0,104180.0,0.24387176]
[1747031247694,0.13424375,104190.0,104180.0,0.25347043]
[1747031247894,0.1438415,104190.0,104180.0,0.25347052]
[1747031248298,0.1438415,104190.0,104180.0,0.26306864]
[1747031248520,0.11176,104190.0,104180.0,0.26066809]
[1747031248721,0.13095431,104190.0,104180.0,0.26066809]
[1747031249268,0.14055179,104190.0,104180.0,0.26066809]
[1747031249439,0.15014936,104190.0,104180.0,0.26066809]
[1747031251498,0.14055179,104190.0,104180.0,0.26066809]
[1747031251915,0.15014945,104190.0,104180.0,0.26066809]
[1747031253577,0.15014945,104190.0,104180.0,0.04949615]
[1747031253786,0.15014945,104190.0,104180.0,0.04270803]
[1747031253992,0.15014945,104190.0,104180.0,0.23468345]
[1747031254211,0.58710901,104190.0,104180.0,0.2154873]
[1747031254420,0.45615424,104190.0,104180.0,0.23468456]
[1747031254632,0.45615424,104190.0,104180.0,0.24428314]
[1747031254633,0.55831658,104190.0,104180.0,0.24428314]
[1747031254836,0.99417088,104190.0,104180.0,0.0151]
[1747031255045,0.99417088,104190.0,104180.0,0.22627267]
[1747031255255,0.99417088,104190.0,104180.0,0.21667409]
[1747031255667,0.99417088,104190.0,104180.0,0.22627267]
[1747031256056,0.20157373,104180.0,104170.0,0.22684023]
[1747031256266,0.20157373,104180.0,104170.0,0.2460385]
[1747031256267,0.01919689,104180.0,104170.0,0.2460385]
[1747031256484,0.14047556,104180.0,104170.0,0.2460385]
[1747031256904,0.14047556,104180.0,104170.0,0.2624385]
[1747031257325,0.14942081,104180.0,104170.0,0.2624385]
[1747031257781,0.1590193,104180.0,104170.0,0.25283946]
[1747031257965,0.02814205,104180.0,104170.0,0.2624385]
[1747031258180,0.00894525,104180.0,104170.0,0.2624385]
[1747031258602,0.23298525,104180.0,104170.0,0.2624385]
[1747031259307,0.23298525,104180.0,104170.0,0.50744023]
[1747031259308,0.00894525,104180.0,104170.0,0.50744023]
[1747031259530,0.00894525,104180.0,104170.0,0.60329453]
[1747031259750,0.11176,104200.0,104190.0,0.24255168]
[1747031260194,0.34959527,104210.0,104200.0,0.25182824]
[1747031260444,0.66946234,104210.0,104200.0,0.25182824]
[1747031260826,0.67905779,104210.0,104200.0,0.25182824]
[1747031261241,0.66946234,104210.0,104200.0,0.25182824]
[1747031261456,0.6790577,104210.0,104200.0,0.25182824]
[1747031261796,0.65986717,104210.0,104200.0,0.25182824]
[1747031262656,0.22393287,104210.0,104200.0,0.25182824]
[1747031263253,0.11181287,104210.0,104200.0,0.25182824]
[1747031263467,0.22385287,104210.0,104200.0,0.25182824]
[1747031264118,0.2430434,104210.0,104200.0,0.25182824]
[1747031264352,0.22385287,104210.0,104200.0,0.25182824]
[1747031264562,0.2430434,104210.0,104200.0,0.25182824]
[1747031264774,9.287e-05,104210.0,104200.0,0.25182824]
[1747031266245,0.00968804,104210.0,104200.0,0.25182824]
[1747031266466,0.11172,104220.0,104210.0,0.22070706]
[1747031266690,0.11172,104220.0,104210.0,0.25230706]
[1747031267370,0.16572899,104220.0,104210.0,0.25230706]
[1747031268238,0.18013147,104220.0,104210.0,0.25230706]
[1747031268929,0.44432263,104220.0,104210.0,0.25230706]
[1747031269139,0.62663021,104220.0,104210.0,0.23311607]
[1747031269707,0.02878654,104210.0,104200.0,0.2605237]
[1747031269947,0.61703513,104220.0,104210.0,0.21111152]
[1747031270178,0.3720334,104220.0,104210.0,0.24131152]
[1747031271571,0.61703513,104220.0,104210.0,0.23171598]
[1747031271833,0.59784524,104220.0,104210.0,0.0302]
[1747031272011,0.59784524,104220.0,104210.0,0.22621207]
[1747031272409,0.45130595,104220.0,104210.0,0.2358078]
[1747031272616,0.48756698,104220.0,104210.0,0.2358078]
[1747031272827,0.50197202,104220.0,104210.0,0.2358078]
[1747031273242,0.51093029,104220.0,104210.0,0.24540343]
[1747031273445,0.51093029,104220.0,104210.0,0.27009897]
[1747031274062,0.31902855,104220.0,104210.0,0.27009897]
[1747031274279,0.26595283,104220.0,104210.0,0.27009833]
[1747031274679,0.04255228,104220.0,104210.0,0.27009833]
[1747031274998,0.00895827,104220.0,104210.0,0.27009833]
[1747031275198,0.00895827,104220.0,104210.0,0.51510006]
[1747031275741,0.00895827,104220.0,104210.0,0.27009833]
[1747031275949,0.01855252,104220.0,104210.0,0.27009833]
[1747031276196,0.00895827,104220.0,104210.0,0.27009833]
[1747031276406,0.00895827,104220.0,104210.0,0.51510006]
[1747031276894,0.00895827,104220.0,104210.0,0.36595263]
[1747031277290,0.00895827,104220.0,104210.0,0.61095436]
[1747031277498,0.00895827,104220.0,104210.0,0.36595263]
[1747031278554,0.01855262,104220.0,104210.0,0.36595263]
[1747031278772,0.01855262,104220.0,104210.0,0.25090743]
[1747031278773,0.48424096,104220.0,104210.0,0.25090743]
[1747031279006,0.28274405,104220.0,104210.0,0.26050279]
[1747031279419,0.02814742,104220.0,104210.0,0.26050279]
[1747031279632,0.02814724,104220.0,104210.0,0.26050279]
[1747031279839,0.01855271,104220.0,104210.0,0.26050279]
[1747031280457,0.01855262,104220.0,104210.0,0.26050279]
[1747031280891,0.02814715,104220.0,104210.0,0.26050279]
[1747031281046,0.01855262,104220.0,104210.0,0.26050279]
[1747031281468,0.48259822,104240.0,104220.0,0.22068616]
[1747031281682,0.43688588,104230.0,104220.0,0.21109163]
[1747031281884,0.00959462,104220.0,104210.0,0.24131106]
[1747031282123,0.44648004,104230.0,104220.0,0.21109144]
[1747031282472,0.44648004,104230.0,104220.0,0.22068606]
[1747031282873,0.20147831,104230.0,104220.0,0.22068606]
[1747031283077,0.44648004,104230.0,104220.0,0.23028059]
[1747031283284,0.44648004,104230.0,104220.0,0.24568059]
[1747031283920,0.48548296,104230.0,104220.0,0.22649144]
[1747031284119,0.48548296,104230.0,104220.0,0.23608606]
[1747031285128,0.49507685,104230.0,104220.0,0.24568059]
[1747031285366,0.49507685,104230.0,104220.0,0.23608606]
[1747031285734,0.49507685,104230.0,104220.0,0.21689673]
[1747031285938,0.49507685,104230.0,104220.0,0.20149673]
[1747031286134,0.49507685,104230.0,104220.0,0.21109154]
[1747031286350,0.3031927,104230.0,104220.0,0.20865154]
[1747031286555,0.71847603,104230.0,104220.0,0.25044625]
[1747031286996,0.72806955,104230.0,104220.0,0.21545673]
[1747031287189,0.00959425,104220.0,104210.0,0.24331097]
[1747031287399,0.13098768,104230.0,104220.0,0.22068606]
[1747031287607,0.6226531,104230.0,104220.0,0.20149673]
[1747031287808,0.6226531,104230.0,104220.0,0.22068616]
[1747031288020,0.37765137,104230.0,104220.0,0.23028069]
[1747031288245,0.37765137,104230.0,104220.0,0.27197513]
[1747031288452,0.37765137,104230.0,104220.0,0.25617513]
[1747031291740,0.37765137,104230.0,104220.0,0.23698616]
[1747031291953,0.6226531,104230.0,104220.0,0.23028069]
[1747031292408,0.37765137,104230.0,104220.0,0.23028069]
[1747031292621,0.6226531,104230.0,104220.0,0.24668069]
[1747031292833,0.63224726,104230.0,104220.0,0.24668069]
[1747031293271,0.01918915,104220.0,104210.0,0.23341543]
[1747031293477,0.0095949,104220.0,104210.0,0.25260688]
[1747031293695,0.00959444,104220.0,104210.0,0.26220205]
[1747031293912,0.0185731,104220.0,104210.0,0.25260623]
[1747031294136,0.02816745,104220.0,104210.0,0.24301106]
[1747031294346,0.04735688,104220.0,104210.0,0.24301106]
[1747031294528,0.03776198,104220.0,104210.0,0.24301106]
[1747031295167,0.04735669,104220.0,104210.0,0.24301106]
[1747031295897,0.03776198,104220.0,104210.0,0.24301106]
[1747031296529,0.04735669,104220.0,104210.0,0.24301106]
[1747031297290,0.0473566,104220.0,104210.0,0.24301106]
[1747031297805,0.0569515,104220.0,104210.0,0.24301106]
[1747031298223,0.05695224,104220.0,104210.0,0.24301106]
[1747031298674,0.04735725,104220.0,104210.0,0.24301106]
[1747031299245,0.4938558,104220.0,104210.0,0.20802016]
[1747031299391,0.44649855,104220.0,104200.0,2.24323122]
[1747031299606,0.44649855,104220.0,104210.0,0.21111189]
[1747031299607,0.43690347,104220.0,104210.0,0.21111189]
[1747031299814,0.43690347,104220.0,104210.0,0.22070762]
[1747031300014,0.01919118,104210.0,104200.0,2.22403857]
[1747031300230,0.03838171,104210.0,104200.0,2.25282833]
[1747031300429,0.03838171,104210.0,104200.0,2.26242461]
[1747031300654,0.01919053,104210.0,104200.0,2.26242461]
[1747031301284,0.02878598,104210.0,104200.0,2.26242461]
[1747031301481,0.01919053,104210.0,104200.0,2.26242461]
[1747031301659,0.03838198,104210.0,104200.0,2.26242461]
[1747031301898,0.01919053,104210.0,104200.0,2.26242461]
[1747031302076,0.13079053,104210.0,104200.0,2.26242461]
[1747031302499,0.14038598,104210.0,104200.0,2.26242461]
[1747031302857,0.14998152,104210.0,104200.0,2.26242461]
[1747031304256,0.15957725,104210.0,104200.0,2.26242461]
[1747031304495,0.14038598,104210.0,104200.0,2.26242461]
[1747031305092,0.13079053,104210.0,104200.0,2.26242461]
[1747031305535,0.1116,104210.0,104200.0,2.26242397]
[1747031306149,0.13079053,104210.0,104200.0,2.26242397]
[1747031306354,0.13079053,104210.0,104200.0,2.02736611]
[1747031306512,0.1116,104210.0,104200.0,2.21927147]
[1747031307730,0.12119517,104210.0,104200.0,2.21927147]
[1747031308798,0.1116,104210.0,104200.0,2.21927147]
[1747031311564,0.11252,104220.0,104210.0,0.2207066]
[1747031311774,0.12211444,104220.0,104210.0,0.23030223]
[1747031311981,0.12211425,104220.0,104210.0,0.24560223]
[1747031312185,0.13170869,104220.0,104210.0,0.26090223]
[1747031312599,0.14069392,104220.0,104210.0,0.26090223]
[1747031313022,0.13109948,104220.0,104210.0,0.26090223]
[1747031313244,0.14069392,104220.0,104210.0,0.26090223]
[1747031314741,0.13109948,104220.0,104210.0,0.26090223]
[1747031315235,0.14069401,104220.0,104210.0,0.26090223]
[1747031315764,0.14069392,104220.0,104210.0,0.26090223]
[1747031316802,0.13109948,104220.0,104210.0,0.26090223]
[1747031316996,0.14069383,104220.0,104210.0,0.26090223]
[1747031317403,0.52613122,104230.0,104210.0,0.26090223]
[1747031317712,0.11252,104220.0,104210.0,0.25130632]
[1747031318117,0.12211462,104220.0,104210.0,0.25130632]
[1747031318321,0.12211444,104220.0,104210.0,0.25130632]
[1747031320617,0.11252,104220.0,104210.0,0.25130632]
[1747031320821,0.12211435,104220.0,104210.0,0.25130632]
[1747031321701,0.11252,104220.0,104210.0,0.25130632]
[1747031321971,0.12211435,104220.0,104210.0,0.25130632]
[1747031322353,0.12211425,104220.0,104210.0,0.25130632]
[1747031323023,0.13170878,104220.0,104210.0,0.25130632]
[1747031323241,0.13170869,104220.0,104210.0,0.25130632]
[1747031323544,0.11252,104220.0,104210.0,0.25130632]
[1747031323760,0.12211444,104220.0,104210.0,0.25130632]
[1747031323964,0.12211425,104220.0,104210.0,0.25130632]
[1747031324720,0.13170869,104220.0,104210.0,0.25130632]
[1747031326985,0.1317086,104220.0,104210.0,0.25130632]
[1747031327206,0.12211425,104220.0,104210.0,0.25130632]
[1747031327835,0.13170869,104220.0,104210.0,0.25130632]
[1747031328152,0.1317086,104220.0,104210.0,0.25130632]
[1747031329098,0.12211425,104220.0,104210.0,0.25130632]
[1747031329315,0.11252,104220.0,104210.0,0.25130632]
[1747031329472,0.11252,104220.0,104210.0,0.24171069]
[1747031329694,0.11252,104220.0,104210.0,0.40240259]
[1747031330291,0.12151095,104220.0,104210.0,0.24171069]
[1747031332744,0.00899095,104220.0,104210.0,0.24171069]
[1747031335407,0.96167323,104240.0,104210.0,0.24171069]
[1747031335606,0.58121577,104240.0,104230.0,0.20147731]
[1747031335785,0.52352577,104240.0,104230.0,0.20147731]
[1747031336244,0.53882577,104240.0,104230.0,0.20147731]
[1747031337569,0.37813387,104240.0,104230.0,0.20147731]
[1747031337800,0.53882577,104240.0,104230.0,0.20147731]
[1747031338030,0.52352577,104240.0,104230.0,0.20147731]
[1747031338254,0.56262224,104240.0,104230.0,0.20147731]
[1747031339643,0.01918759,104230.0,104220.0,0.25218588]
[1747031339910,0.2164397,104230.0,104220.0,0.24259144]
[1747031340123,0.23562747,104230.0,104220.0,0.26178059]
[1747031341152,0.41791701,104230.0,104220.0,0.26178059]
[1747031341502,0.1606919,104230.0,104220.0,0.26178059]
[1747031341751,0.35257523,104230.0,104220.0,0.26178059]
[1747031342112,0.36216939,104230.0,104220.0,0.26178059]
[1747031342317,0.17988013,104230.0,104220.0,0.27137503]
[1747031342687,0.17987995,104230.0,104220.0,0.27137503]
[1747031343939,0.38135717,104230.0,104220.0,0.24259154]
[1747031344146,0.38135717,104230.0,104220.0,0.25218625]
[1747031344374,0.38135717,104230.0,104220.0,0.26178087]
[1747031345341,0.38135717,104230.0,104220.0,0.2713754]
[1747031345549,0.40832691,104230.0,104220.0,0.2713754]
[1747031345762,0.40832691,104230.0,104220.0,0.25218625]
[1747031346237,0.40832691,104230.0,104220.0,0.26178087]
[1747031346446,0.40832691,104230.0,104220.0,0.2713754]
[1747031347539,0.1606919,104230.0,104220.0,0.2713754]
[1747031347728,0.19188333,104230.0,104220.0,0.2713754]
[1747031349681,0.01918805,104230.0,104220.0,0.27137485]
[1747031350795,0.02878194,104230.0,104220.0,0.27137485]
[1747031351677,0.0653474,104230.0,104220.0,0.27137485]
[1747031352412,0.0653474,104230.0,104220.0,0.26941485]
[1747031352917,0.40832874,104230.0,104220.0,0.23103664]
[1747031353131,0.40832874,104230.0,104220.0,0.21779664]
[1747031353352,0.40832874,104230.0,104220.0,0.22739145]
[1747031353543,0.1606919,104230.0,104220.0,0.22739145]
[1747031353690,0.35257523,104230.0,104220.0,0.23698616]
[1747031353897,0.35257523,104230.0,104220.0,0.24658078]
[1747031354307,0.36216939,104230.0,104220.0,0.24658078]
[1747031354529,0.37176346,104230.0,104220.0,0.25617531]
[1747031354726,0.38135744,104230.0,104220.0,0.25617531]
[1747031355490,0.38135744,104230.0,104220.0,0.23698616]
[1747031355730,0.38135744,104230.0,104220.0,0.24658078]
[1747031356175,0.49299744,104230.0,104220.0,0.23698616]
[1747031356485,0.49299744,104230.0,104220.0,0.22068616]
[1747031356732,0.49299744,104230.0,104220.0,0.20149682]
[1747031356972,0.49299744,104230.0,104220.0,0.21109163]
[1747031357403,0.33230554,104230.0,104220.0,0.22068634]
[1747031357604,0.51997158,104230.0,104220.0,0.23028096]
[1747031358014,0.85997158,104230.0,104220.0,0.22068634]
[1747031358211,0.85997158,104230.0,104220.0,0.23028096]
[1747031358803,0.85997158,104230.0,104220.0,0.24678096]
[1747031359329,0.85997158,104230.0,104220.0,0.23718634]
[1747031359506,0.55771158,104230.0,104220.0,0.23718634]
[1747031359645,0.74959491,104230.0,104220.0,0.22759163]
[1747031359854,0.76559491,104230.0,104220.0,0.20149682]
[1747031360077,0.76559491,104230.0,104220.0,0.21109181]
[1747031360289,0.74959491,104230.0,104220.0,0.23028152]
[1747031360937,0.74959491,104230.0,104220.0,0.23987623]
[1747031361419,0.64352333,104230.0,104220.0,0.23987623]
[1747031361590,0.80421523,104230.0,104220.0,0.25497623]
[1747031363392,0.91585523,104230.0,104220.0,0.25497623]
[1747031363557,0.94283298,104230.0,104220.0,0.23578671]
[1747031363780,0.94283298,104230.0,104220.0,0.22068671]
[1747031364137,0.94283298,104230.0,104220.0,0.24668152]
[1747031364339,0.94283298,104230.0,104220.0,0.25627623]
[1747031365186,0.94283298,104230.0,104220.0,0.25627577]
[1747031365599,0.50195523,104230.0,104220.0,0.25627577]
[1747031365809,0.50195523,104230.0,104220.0,0.22749154]
[1747031366049,0.52114328,104230.0,104220.0,0.23708616]
[1747031366690,0.52114328,104230.0,104220.0,0.25278616]
[1747031366891,0.52114328,104230.0,104220.0,0.23708616]
[1747031367989,0.22068616,104220.0,104210.0,0.23271485]
[1747031368111,0.37178353,104220.0,104210.0,0.56312016]
[1747031368322,0.37178353,104220.0,104210.0,0.56495508]
[1747031368545,0.37178353,104220.0,104210.0,0.57670762]
[1747031368784,0.37178353,104220.0,104210.0,0.56711189]
[1747031369189,0.36218872,104220.0,104210.0,0.55751607]
[1747031369832,0.36218872,104220.0,104210.0,0.56711189]
[1747031371163,0.36218872,104220.0,104210.0,0.57670762]
[1747031371453,0.35259364,104220.0,104210.0,0.59290762]
[1747031371608,0.46419364,104220.0,104210.0,0.59290762]
[1747031372040,0.46419364,104220.0,104210.0,0.60034663]
[1747031372227,0.46419364,104220.0,104210.0,0.59290762]
[1747031372448,0.47378872,104220.0,104210.0,0.59290762]
[1747031372882,0.47378872,104220.0,104210.0,0.26250325]
[1747031373620,0.47378872,104220.0,104210.0,0.2720987]
[1747031375296,0.29148179,104220.0,104210.0,0.2720987]
[1747031375469,0.29148179,104220.0,104210.0,0.27209815]
[1747031377537,0.2722919,104220.0,104210.0,0.27209815]
[1747031377953,0.28188698,104220.0,104210.0,0.27209815]
[1747031378343,0.29148161,104220.0,104210.0,0.27209815]
[1747031379350,0.31067113,104220.0,104210.0,0.27209815]
[1747031380443,0.14997923,104220.0,104210.0,0.27209815]
[1747031380674,0.31067113,104220.0,104210.0,0.27209815]
[1747031381232,0.50257287,104220.0,104210.0,0.2713224]
[1747031381396,0.31067113,104220.0,104210.0,0.24552704]
[1747031381599,0.14997923,104220.0,104210.0,0.2551224]
[1747031381799,0.31067113,104220.0,104210.0,0.2712224]
[1747031383625,0.2722919,104220.0,104210.0,0.27122185]
[1747031384764,0.2914817,104220.0,104210.0,0.27122185]
[1747031385851,0.31067113,104220.0,104210.0,0.27122185]
[1747031386200,0.31067113,104220.0,104210.0,0.26162658]
[1747031387018,0.36826113,104220.0,104210.0,0.26162658]
[1747031387218,0.31067113,104220.0,104210.0,0.26162658]
[1747031387712,0.50257287,104220.0,104210.0,0.24243577]
[1747031387925,0.51216795,104220.0,104210.0,0.25203131]
[1747031388149,0.50257342,104220.0,104210.0,0.24552676]
[1747031388366,0.50257342,104220.0,104210.0,0.23593131]
[1747031388548,0.50257342,104220.0,104210.0,0.24552676]
[1747031388752,0.3010766,104220.0,104210.0,0.27052212]
[1747031389568,0.2722919,104220.0,104210.0,0.27052212]
[1747031389767,0.2914817,104220.0,104210.0,0.27052212]
[1747031390178,0.2914817,104220.0,104210.0,0.27796113]
[1747031390387,0.2914817,104220.0,104210.0,0.27052212]
[1747031390538,0.29148161,104220.0,104210.0,0.27052212]
[1747031393260,0.13078878,104220.0,104210.0,0.27052212]
[1747031394253,0.69280493,104240.0,104230.0,0.00959407]
[1747031394465,1.08791463,104240.0,104230.0,0.2329774]
[1747031394671,1.08791463,104240.0,104230.0,0.0315]
[1747031394876,1.10245548,104240.0,104230.0,0.015]
[1747031395503,0.80015548,104240.0,104230.0,0.6952]
[1747031395705,1.03121887,104240.0,104230.0,0.6802]
[1747031396969,0.80801887,104240.0,104230.0,0.6802]
[1747031397114,1.04081202,104240.0,104230.0,0.6802]
[1747031397350,1.05040489,104240.0,104230.0,0.6802]
[1747031397931,0.85850698,104240.0,104230.0,0.91726471]
[1747031398330,0.87310286,104240.0,104230.0,0.91726471]
[1747031398737,0.76150286,104240.0,104230.0,0.93306471]
[1747031398955,0.8826561,104240.0,104230.0,0.9330648]
[1747031399571,0.8826561,104240.0,104230.0,0.94265832]
[1747031400720,0.77109537,104240.0,104230.0,0.94265832]
[1747031400915,0.35962979,104240.0,104230.0,0.94265832]
[1747031401122,0.4807822,104240.0,104230.0,0.94265832]
[1747031401559,0.07586963,104240.0,104230.0,0.94265832]
[1747031402709,0.12462548,104240.0,104230.0,0.94265832]
[1747031402906,0.13936385,104240.0,104230.0,0.94265832]
[1747031403123,0.17444896,104240.0,104230.0,0.94265832]
[1747031403348,0.06288896,104240.0,104230.0,0.94265832]
[1747031403767,0.07248137,104240.0,104230.0,0.94265832]
[1747031403961,0.06288896,104240.0,104230.0,0.94265832]
[1747031404153,0.22358086,104240.0,104230.0,0.94265832]
[1747031404364,0.23317346,104240.0,104230.0,0.94265832]
[1747031404563,0.24276624,104240.0,104230.0,0.94265832]
[1747031404980,0.06288896,104240.0,104230.0,0.95009733]
[1747031405210,0.07248147,104240.0,104230.0,0.94265832]
[1747031406053,0.08207416,104240.0,104230.0,0.94265832]
[1747031406700,0.07248147,104240.0,104230.0,0.94265832]
[1747031406906,0.08207407,104240.0,104230.0,0.94265832]
[1747031407572,0.4882324,104250.0,104240.0,0.24305094]
[1747031407748,0.49791698,104250.0,104240.0,0.92325094]
[1747031408186,0.51199149,104250.0,104240.0,0.92325094]
[1747031408376,0.41002363,104250.0,104240.0,0.92325094]
[1747031408580,0.12572723,104250.0,104240.0,0.93284354]
[1747031408780,0.14491086,104250.0,104240.0,0.93284354]
[1747031409027,0.31519499,104250.0,104240.0,0.93284354]
[1747031409206,0.30560276,104250.0,104240.0,0.93284354]
[1747031409454,0.3151949,104250.0,104240.0,0.93284354]
[1747031409647,0.14491086,104250.0,104240.0,0.93284354]
[1747031409850,0.30560276,104250.0,104240.0,0.93284354]
[1747031410051,0.3151949,104250.0,104240.0,0.93284354]
[1747031410255,0.154503,104250.0,104240.0,0.93284354]
[1747031410489,0.35406862,104250.0,104240.0,0.93284354]
[1747031410898,0.19337672,104250.0,104240.0,0.93284354]
[1747031411063,0.32529285,104250.0,104240.0,0.93284354]
[1747031411268,0.17419263,104250.0,104240.0,0.93284354]
[1747031411477,0.18378449,104250.0,104240.0,0.93284354]
[1747031411682,0.34447639,104250.0,104240.0,0.93284354]
[1747031411884,0.35406844,104250.0,104240.0,0.93284354]
[1747031412276,0.03896644,104250.0,104240.0,1.07869784]
[1747031413719,0.29139342,104260.0,104250.0,0.30172238]
[1747031413930,0.21103043,104250.0,104240.0,0.96275807]
[1747031414162,0.38626364,104250.0,104240.0,0.6952]
[1747031414372,0.53583315,104250.0,104240.0,0.6952]
[1747031414583,0.53583315,104250.0,104240.0,0.70479324]
[1747031415001,0.53583315,104250.0,104240.0,0.90625131]
[1747031415339,0.53581374,104250.0,104240.0,0.90625131]
[1747031415545,0.61997579,104250.0,104240.0,0.90625131]
[1747031415753,0.61038365,104250.0,104240.0,0.70479324]
[1747031415955,0.61038365,104250.0,104240.0,0.90625131]
[1747031416157,0.62461429,104250.0,104240.0,0.90625131]
[1747031416393,0.62461429,104250.0,104240.0,0.91584418]
[1747031416738,0.62461429,104250.0,104240.0,0.93194418]
[1747031417159,0.44235972,104250.0,104240.0,0.92235131]
[1747031417373,0.1829836,104250.0,104240.0,0.99153678]
[1747031417601,0.04764119,104250.0,104240.0,0.99153678]
[1747031417791,0.03804951,104250.0,104240.0,0.99153678]
[1747031418067,0.01918179,104260.0,104250.0,0.30232238]
[1747031418298,0.0191817,104260.0,104250.0,0.30232238]
[1747031418509,0.00959057,104260.0,104250.0,0.30076174]
[1747031418720,0.25442511,104260.0,104250.0,0.30076174]
[1747031418905,0.02877227,104260.0,104250.0,0.30076174]
[1747031420217,0.02814236,104260.0,104250.0,0.30076174]
[1747031420443,0.0185516,104260.0,104250.0,0.30076174]
[1747031420666,0.0427107,104260.0,104250.0,0.30076174]
[1747031421275,0.0185516,104260.0,104250.0,0.30076174]
[1747031421494,0.05744939,104260.0,104250.0,0.30076174]
[1747031421715,0.02814236,104260.0,104250.0,0.30076174]
[1747031421926,0.28256784,104260.0,104250.0,0.30076174]
[1747031422570,0.43898212,104270.0,104260.0,0.3492515]
[1747031422791,0.68381666,104270.0,104260.0,0.3492515]
[1747031423206,0.72354438,104270.0,104260.0,0.37454263]
[1747031423460,0.63648907,104270.0,104260.0,0.38413348]
[1747031423674,0.63910311,104270.0,104260.0,0.39372424]
[1747031423984,0.37972772,104270.0,104260.0,1.48782424]
[1747031424190,0.49124772,104270.0,104260.0,1.48782424]
[1747031424406,0.03972772,104270.0,104260.0,1.53726424]
[1747031424652,0.77750144,104300.0,104290.0,0.22684976]
[1747031424859,0.90021209,104300.0,104290.0,0.64074976]
[1747031425074,0.93404949,104300.0,104290.0,0.65033776]
[1747031425292,0.07268,104300.0,104290.0,0.66553776]
[1747031425535,0.55046172,104300.0,104290.0,0.66553776]
[1747031425756,0.55046172,104300.0,104290.0,0.63677294]
[1747031425757,0.74221746,104300.0,104290.0,0.63677294]
[1747031425982,1.08225737,104300.0,104290.0,0.65694995]
[1747031426216,0.56009054,104300.0,104290.0,0.66653804]
[1747031426658,0.90009054,104300.0,104290.0,0.66653804]
[1747031427289,0.90009054,104300.0,104290.0,0.66753804]
[1747031427466,1.07267019,104300.0,104290.0,0.6675384]
[1747031427701,1.07267019,104300.0,104290.0,0.65795013]
[1747031427914,1.07267019,104300.0,104290.0,0.67712696]
[1747031428212,1.07267019,104300.0,104290.0,0.68671523]
[1747031428425,0.88091564,104300.0,104290.0,0.68671468]
[1747031428662,1.50894534,104300.0,104290.0,1.0961]
[1747031428857,1.49864534,104300.0,104290.0,1.0961]
[1747031429445,1.48294534,104300.0,104290.0,1.0961]
[1747031433760,1.30982186,104300.0,104290.0,1.05611]
[1747031433965,1.50934534,104300.0,104290.0,1.05611]
[1747031434380,1.50934534,104300.0,104290.0,0.37591]
[1747031435285,1.32592234,104300.0,104290.0,0.32203362]
[1747031435653,0.56551066,104280.0,104270.0,0.12348132]
[1747031435870,1.1297195,104280.0,104270.0,0.07504132]
[1747031436106,0.9061995,104280.0,104270.0,0.12348132]
[1747031436317,1.1297595,104280.0,104270.0,0.12348132]
[1747031437302,1.3266069,104280.0,104270.0,0.12348132]
[1747031438071,1.10576593,104280.0,104270.0,0.12348132]
[1747031438241,1.3266069,104280.0,104270.0,0.12348132]
[1747031439095,1.3266069,104280.0,104270.0,0.05954132]
[1747031439267,1.3266069,104280.0,104270.0,0.10798132]
[1747031439411,1.3266069,104280.0,104270.0,0.05954132]
[1747031440227,1.3266069,104280.0,104270.0,0.10798132]
[1747031442669,0.51594087,104270.0,104260.0,0.06659217]
[1747031442875,0.83263614,104270.0,104260.0,0.06659217]
[1747031443084,0.84823614,104270.0,104260.0,0.06659217]
[1747031443301,0.85853614,104270.0,104260.0,0.06659217]
[1747031443485,0.84823614,104270.0,104260.0,0.06659217]
[1747031443711,1.26255614,104270.0,104260.0,0.06659217]
[1747031443884,1.27285614,104270.0,104260.0,0.06659217]
[1747031444086,1.26255614,104270.0,104260.0,0.06859217]
[1747031444256,1.26355614,104270.0,104260.0,0.06859217]
[1747031445156,1.35941044,104270.0,104260.0,0.06859217]
[1747031445353,1.26355614,104270.0,104260.0,0.06859217]
[1747031445549,1.30070417,104270.0,104260.0,0.06859217]
[1747031446366,1.27480417,104270.0,104260.0,0.06859217]
[1747031446584,1.27480417,104270.0,104260.0,0.48249217]
[1747031447529,1.32415942,104270.0,104260.0,0.48249217]
[1747031448644,1.27480417,104270.0,104260.0,0.2948232]
[1747031451547,1.0539632,104270.0,104260.0,0.2948232]
[1747031451750,1.27480417,104270.0,104260.0,0.2948232]
[1747031452609,1.27480417,104270.0,104260.0,0.3098232]
[1747031454164,1.27480417,104270.0,104260.0,0.2948232]